fUSD/lending_fUSD_20250814
["ID","MTS","AMOUNT","RATE_DAILY","PERIOD"]
[379212874,1755189068439,-3062.56,0.00027397,2]
[379212875,1755189068449,-6207.63,0.00027397,2]
[379212876,1755189068462,-400.0,0.00027397,2]
[379212877,1755189068471,-4933.74,0.00027397,2]
[379212878,1755189068481,-2014.64,0.00027397,2]
[379212879,1755189068490,-400.0,0.00027397,2]
[379212880,1755189068499,-400.0,0.00027397,2]
[379212881,1755189068512,-400.0,0.00027397,2]
[379212882,1755189068521,-3050.51,0.00027397,2]
[379212883,1755189068530,-400.0,0.00027397,2]
[379212884,1755189068540,-400.0,0.00027397,2]
[379212885,1755189068550,-753.5,0.00027397,2]
[379212886,1755189068560,-7978.11,0.00027397,2]
[379212887,1755189068569,-13788.08,0.00027397,2]
[379212888,1755189068578,-10845.57,0.00027397,2]
[379212889,1755189068588,-1611.75,0.00027397,2]
[379212890,1755189068597,-400.0,0.00027397,2]
[379212891,1755189068606,-400.0,0.00027397,2]
[379212892,1755189068616,-563.73,0.00027397,2]
[379212893,1755189068626,-400.0,0.00027397,2]
[379212894,1755189068634,-2721.79,0.00027397,2]
[379212895,1755189068646,-2279.24,0.00027397,2]
[379212896,1755189068655,-563.73,0.00027397,2]
[379212897,1755189068665,-563.73,0.00027397,2]
[379212898,1755189068674,-563.73,0.00027397,2]
[379212899,1755189068684,-563.73,0.00027397,2]
[379212900,1755189068693,-7498.72,0.00027397,2]
[379212901,1755189068702,-563.73,0.00027397,2]
[379212902,1755189068712,-563.73,0.00027397,2]
[379212903,1755189068722,-563.73,0.00027397,2]
[379212904,1755189068732,-1701.67870372,0.00027397,2]
[379212905,1755189068745,-888.0,0.00027397,2]
[379212906,1755189068761,-12.89129628,0.00027397,2]
[379212907,1755189068771,-563.73,0.00027397,2]
[379212908,1755189068780,-1158.96,0.00027397,2]
[379212909,1755189068789,-563.73,0.00027397,2]
[379212910,1755189068799,-606.5,0.00027397,2]
[379212911,1755189068808,-563.73,0.00027397,2]
[379212912,1755189068818,-6276.11,0.00027397,2]
[379212913,1755189068827,-563.73,0.00027397,2]
[379212914,1755189068836,-563.73,0.00027397,2]
[379212915,1755189068846,-400.0,0.00027397,2]
[379212916,1755189068855,-563.73,0.00027397,2]
[379212917,1755189068864,-2667.67140518,0.00027397,2]
[379212918,1755189068946,-2974.07142897,0.00027397,2]
[379212919,1755189068995,-4022.27716585,0.00027397,2]
[379212920,1755189069005,-563.73,0.00027397,2]
[379212921,1755189069018,-563.73,0.00027397,2]
[379212922,1755189069027,-563.73,0.00027397,2]
[379212923,1755189069037,-2490.85,0.00027397,2]
[379212924,1755189069047,-400.0,0.00027397,2]
[379212925,1755189069056,-500.0,0.00027397,2]
[379212926,1755189069065,-563.73,0.00027397,2]
[379212927,1755189069075,-500.0,0.00027397,2]
[379212928,1755189069084,-563.73,0.00027397,2]
[379212929,1755189069093,-500.0,0.00027397,2]
[379212930,1755189069103,-563.73,0.00027397,2]
[379212931,1755189069112,-1154.86469142,0.00027397,2]
[379212932,1755189069123,-927.89530858,0.00027397,2]
[379212933,1755189069134,-430.86,0.00027397,2]
[379212934,1755189069143,-500.0,0.00027397,2]
[379212935,1755189069152,-563.73,0.00027397,2]
[379212936,1755189069166,-400.0,0.00027397,2]
[379212937,1755189069177,-615.19222376,0.00027397,2]
[379212938,1755189069187,-563.73,0.00027397,2]
[379212939,1755189069197,-563.73,0.00027397,2]
[379212940,1755189069206,-400.0,0.00027397,2]
[379212941,1755189069216,-563.74,0.00027397,2]
[379212942,1755189069225,-400.0,0.00027397,2]
[379212943,1755189069235,-400.0,0.00027397,2]
[379212944,1755189069246,-400.0,0.00027397,2]
[379212945,1755189069256,-483.51,0.00027397,2]
[379212946,1755189069268,-400.0,0.00027397,2]
[379212947,1755189069277,-408.5,0.00027397,2]
[379212948,1755189069286,-2588.82,0.00027397,2]
[379212949,1755189069295,-3678.15,0.00027397,2]
[379212950,1755189069304,-1749.81,0.00027397,2]
[379212951,1755189069314,-400.0,0.00027397,2]
[379212952,1755189069323,-1778.15,0.00027397,2]
[379212953,1755189069333,-1061.52,0.00027397,2]
[379212954,1755189069343,-400.0,0.00027397,2]
[379212955,1755189069353,-2416.23,0.00027397,2]
[379212956,1755189069362,-400.0,0.00027397,2]
[379212957,1755189069371,-151.0,0.00027397,5]
[379212958,1755189069380,-400.0,0.00027397,2]
[379212959,1755189069390,-8465.36,0.00027397,2]
[379212960,1755189069399,-2456.34,0.00027397,2]
[379212961,1755189069408,-400.0,0.00027397,2]
[379212962,1755189069419,-3201.58,0.00027397,2]
[379212963,1755189069428,-1555.75,0.00027397,2]
[379212964,1755189069437,-4426.46,0.00027397,2]
[379212965,1755189069447,-423.79,0.00027397,2]
[379212966,1755189069457,-16957.24,0.00027397,2]
[379212967,1755189069466,-402.88532353,0.00027397,2]
[379212968,1755189069476,-5640.08,0.00027397,2]
[379212969,1755189069485,-6091.07966783,0.00027397,2]
[379212970,1755189070922,-778.40738836,0.00022616,2]
[379212971,1755189070932,-458.13769775,0.0002719,7]
[379212972,1755189070941,-7323.15033217,0.00027397,2]
[379212973,1755189070951,-6027.53,0.00027397,2]
[379212974,1755189070960,-400.0,0.00027397,2]
[379212975,1755189070969,-2709.61,0.00027397,2]
[379212976,1755189070979,-1156.22,0.00027397,2]
[379212977,1755189070988,-2367.85,0.00027397,2]
[379212978,1755189070997,-400.0,0.00027397,2]
[379212979,1755189071006,-400.0,0.00027397,2]
[379212980,1755189071019,-2611.72,0.00027397,2]
[379212981,1755189071028,-1579.42,0.00027397,2]
[379212982,1755189071037,-1814.29,0.00027397,2]
[379212983,1755189071047,-400.0,0.00027397,2]
[379212984,1755189071057,-400.0,0.00027397,2]
[379212985,1755189071066,-1592.89,0.00027397,2]
[379212986,1755189071075,-2561.95,0.00027397,14]
[379212987,1755189071085,-6380.27,0.00027397,2]
[379212988,1755189071094,-12985.32,0.00027397,2]
[379212989,1755189071103,-9936.74,0.00027397,2]
[379212990,1755189071113,-400.0,0.00027397,2]
[379212991,1755189071123,-6295.49,0.00027397,2]
[379212993,1755189071132,-400.0,0.00027397,2]
[379212994,1755189071142,-400.0,0.00027397,2]
[379212995,1755189071152,-834.32,0.00027397,2]
[379212996,1755189071163,-6228.98,0.00027397,2]
[379212997,1755189071176,-400.0,0.00027397,2]
[379212998,1755189071185,-151.0,0.00027397,7]
[379212999,1755189071195,-3817.4,0.00027397,2]
[379213000,1755189071204,-534.5325565,0.00027397,2]
[379213001,1755189071213,-400.0,0.00027397,2]
[379213002,1755189071223,-413.51,0.00027397,2]
[379213003,1755189071234,-400.0,0.00027397,2]
[379213004,1755189071244,-4067.81,0.00027397,2]
[379213005,1755189071256,-2878.74,0.00027397,2]
[379213006,1755189071269,-400.0,0.00027397,2]
[379213007,1755189071279,-314.71202522,0.00027397,2]
[379213008,1755189071374,-815.22797478,0.00027397,2]
[379213009,1755189071384,-1568.86,0.00027397,2]
[379213010,1755189071398,-400.0,0.00027397,2]
[379213011,1755189071409,-400.0,0.00027397,2]
[379213012,1755189071419,-400.0,0.00027397,2]
[379213013,1755189071429,-657.17,0.00027397,2]
[379213014,1755189071438,-457.62216272,0.00027397,2]
[379213015,1755189072201,-151.0,0.00019105,2]
[379213016,1755189072211,-1977.58783728,0.00027397,2]
[379213017,1755189072220,-6051.16,0.00027397,2]
[379213018,1755189072230,-3179.74815047,0.00027397,2]
[379213019,1755189073362,1629.0,0.00027387,120]
[379213020,1755189073537,1629.0,0.00027377,120]
[379213021,1755189073840,1629.0,0.00027367,120]
[379213022,1755189074153,1629.0,0.00027661,120]
[379213025,1755189074501,1629.0,0.00027651,120]
[379213026,1755189074797,1629.0,0.00027641,120]
[379213027,1755189075087,1629.0,0.0002793,120]
[379213028,1755189076586,1629.0,0.0002792,120]
[379213029,1755189076775,1629.0,0.000282,120]
[379213030,1755189077103,1630.0,0.0002819,120]
[379213047,1755189116829,931.9,0.00030136,120]
[379213050,1755189121938,300.0,0.00018999,2]
[379213051,1755189123287,1000.0,0.00018963,2]
[379213055,1755189131309,151.0,0.00018969,2]
[379213056,1755189131564,152.38,0.00030136,120]
[379213063,1755189160895,430.43129,0.0003013,120]
[379213074,1755189200122,150.0,0.00030136,120]
[379213091,1755189278342,502.91,0.00030137,120]
[379213098,1755189298227,620.719,0.00027379,120]
[379213099,1755189298370,283.2,0.00013699,2]
[379213100,1755189299060,1000.0,0.00027379,120]
[379213101,1755189299512,670.843,0.00027379,120]
[379213111,1755189341669,195.0,0.00027984,120]
[379213112,1755189343219,195.0,0.00029383,120]
[379213115,1755189357417,1000.0,0.00030136,120]
[379213122,1755189384414,300.0,0.00028459,120]
[379213123,1755189384806,450.0,0.00029829,120]
[379213132,1755189417040,1000.0,0.00030136,120]
[379213140,1755189472068,170.0,0.00019144,7]
[379213158,1755189554207,1193.29,0.00018356,120]
[379213159,1755189558276,-5000000.0,0.00039107,30]
[379213164,1755189579693,-5000000.0,0.00039107,30]
[379213168,1755189592194,-5000000.0,0.00039107,30]
[379213169,1755189593242,2010.24976195,0.00030137,120]
[379213170,1755189596815,-5000000.0,0.00039107,30]
[379213171,1755189599320,290.9,0.00030136,120]
[379213172,1755189602664,-5000000.0,0.00039107,30]
[379213173,1755189612721,-164.176799,0.00018577,2]
[379213174,1755189612758,-151.0,0.00018683,2]
[379213175,1755189612795,-151.0,0.00018693,2]
[379213176,1755189612820,-151.0,0.00018698,2]
[379213178,1755189623175,258.84781,0.00026,30]
[379213179,1755189623973,258.84781,0.00026,30]
[379213180,1755189624266,258.84781,0.00026,30]
[379213181,1755189624478,258.84781,0.00026,30]
[379213182,1755189624759,258.84785,0.00026,30]
[379213184,1755189626668,151.0,0.00018689,2]
[379213193,1755189674752,506.46541626,0.0003013,120]
[379213199,1755189716725,-5000000.0,0.00039107,30]
[379213201,1755189722195,-5000000.0,0.00039107,30]
[379213202,1755189730106,-5000000.0,0.00039107,30]
[379213207,1755189796317,970.98,0.00024685,30]
[379213211,1755189854263,1071.67,0.00024856,120]
[379213212,1755189854494,1071.67,0.00027341,120]
[379213213,1755189854689,1071.67,0.00029827,120]
[379213218,1755189888206,150.5,0.00027387,120]
[379213219,1755189889061,150.5,0.00027377,120]
[379213220,1755189889217,150.5,0.00027367,120]
[379213221,1755189889565,150.5,0.00027661,120]
[379213222,1755189889961,1411.0,0.00030136,120]
[379213223,1755189890006,150.5,0.00027651,120]
[379213224,1755189890454,150.5,0.00027641,120]
[379213225,1755189892305,150.5,0.0002793,120]
[379213226,1755189892516,150.5,0.0002792,120]
[379213227,1755189892656,208.05,0.0002834,120]
[379213230,1755189907273,200.0,0.00027534,120]
[379213244,1755190070343,212.72434047,0.00018651,2]
[379213245,1755190099280,150.0,0.00024,120]
[379213246,1755190129291,1095.0,0.00027387,120]
[379213247,1755190129515,1095.0,0.00027377,120]
[379213248,1755190129844,1095.0,0.00027367,120]
[379213249,1755190130116,1095.0,0.00027629,120]
[379213250,1755190130285,1095.0,0.00027619,120]
[379213251,1755190130975,1095.0,0.00027609,120]
[379213252,1755190131383,1095.0,0.0002794,120]
[379213253,1755190131536,1095.0,0.0002793,120]
[379213254,1755190131799,1095.0,0.0002819,120]
[379213255,1755190132305,1097.9,0.0002818,120]
[379213256,1755190134756,1207.98599804,0.0003013,120]
[379213258,1755190197118,1000.0,0.00030136,120]
[379213259,1755190197148,931.9,0.00030136,120]
[379213260,1755190203494,620.719,0.00027424,120]
[379213261,1755190204062,1000.0,0.00027424,120]
[379213262,1755190204516,670.843,0.00027424,120]
[379213278,1755190232412,-1099.9786,0.00018716,2]
[379213279,1755190232421,-1000.0,0.00018733,2]
[379213280,1755190232430,-1200.0,0.00018987,2]
[379213281,1755190232440,-300.0,0.00018987,2]
[379213282,1755190232452,-151.87,0.00019066,2]
[379213283,1755190232462,-250.0,0.00019228,2]
[379213284,1755190232471,-1552.55,0.00019228,2]
[379213285,1755190232481,-151.0,0.00019264,2]
[379213287,1755190232490,-151.0,0.00019276,2]
[379213289,1755190232502,-151.0,0.00019286,2]
[379213290,1755190232514,-151.0,0.00019298,2]
[379213292,1755190232524,-965.46,0.00019331,2]
[379213294,1755190232534,-150.0,0.00019444,2]
[379213296,1755190232545,-7402.95,0.00019465,2]
[379213297,1755190232556,-1099.9786,0.00019476,2]
[379213298,1755190232566,-725.25,0.00019476,2]
[379213299,1755190232575,-1099.9786,0.00019488,2]
[379213300,1755190232585,-500.0,0.00019488,2]
[379213301,1755190232597,-500.0,0.00019488,2]
[379213302,1755190232607,-500.0,0.00019488,2]
[379213303,1755190232617,-500.0,0.00019488,2]
[379213304,1755190232627,-338.33228678,0.00019488,2]
[379213305,1755190232636,-850.0,0.00019499,2]
[379213306,1755190232647,-500.0,0.000195,2]
[379213307,1755190232656,-190.8,0.00019588,2]
[379213308,1755190232666,-182.01,0.00019588,2]
[379213309,1755190232676,-559.35,0.00019639,2]
[379213311,1755190232685,-150.0,0.00019704,2]
[379213313,1755190232695,-497.87,0.00019768,2]
[379213314,1755190232705,-212.72434046,0.000198,2]
[379213316,1755190232714,-4524.27,0.00019804,2]
[379213318,1755190232724,-159.64,0.00019863,2]
[379213319,1755190232733,-292.58892336,0.00019869,2]
[379213321,1755190232743,-1071.67,0.00019885,2]
[379213323,1755190232753,-438.34,0.00019885,2]
[379213325,1755190232763,-428.0,0.000199,3]
[379213327,1755190232772,-63.30284942,0.000199,2]
[379213329,1755190232784,-86.69715058,0.000199,2]
[379213331,1755190232793,-500.0,0.000199,3]
[379213333,1755190232803,-150.0,0.000199,3]
[379213334,1755190232812,-500.0,0.000199,3]
[379213335,1755190232821,-162.0836138,0.000199,3]
[379213336,1755190232831,-500.0,0.000199,3]
[379213337,1755190232841,-3.53053554,0.000199,3]
[379213338,1755190232866,-496.46946446,0.000199,3]
[379213339,1755190232875,-500.0,0.000199,3]
[379213340,1755190232884,-500.0,0.000199,3]
[379213341,1755190232893,-500.0,0.000199,3]
[379213342,1755190232902,-500.0,0.000199,3]
[379213343,1755190232911,-3.38054454,0.000199,3]
[379213344,1755190232922,-208.48618673,0.000199,3]
[379213345,1755190232931,-458.13769775,0.000199,3]
[379213346,1755190232940,-500.0,0.000199,3]
[379213347,1755190232950,-204.4011667,0.000199,3]
[379213348,1755190232960,-150.0,0.000199,3]
[379213349,1755190232969,-150.0,0.000199,3]
[379213350,1755190232979,-500.0,0.000199,3]
[379213351,1755190232988,-150.0,0.000199,3]
[379213352,1755190232997,-153.87544982,0.000199,3]
[379213353,1755190233025,-346.12455018,0.000199,3]
[379213354,1755190233034,-500.0,0.000199,3]
[379213355,1755190233044,-500.0,0.000199,3]
[379213356,1755190233054,-150.0,0.000199,3]
[379213357,1755190233063,-3.87544982,0.000199,3]
[379213358,1755190233075,-496.12455018,0.000199,3]
[379213359,1755190233086,-500.0,0.000199,3]
[379213360,1755190233095,-287.44003504,0.000199,2]
[379213361,1755190233108,-212.55996496,0.000199,2]
[379213362,1755190233118,-150.0,0.000199,2]
[379213363,1755190233128,-500.0,0.000199,3]
[379213364,1755190233137,-500.0,0.000199,3]
[379213365,1755190233147,-150.0,0.000199,2]
[379213366,1755190233157,-1456.0,0.000199,3]
[379213367,1755190233166,-449.24976616,0.000199,3]
[379213368,1755190233178,-404.75023384,0.000199,3]
[379213369,1755190233188,-1030.0,0.000199,3]
[379213370,1755190233199,-500.0,0.000199,3]
[379213371,1755190233209,-500.0,0.000199,2]
[379213372,1755190233218,-151.01061347,0.000199,3]
[379213373,1755190233229,-208.37797738,0.000199,3]
[379213374,1755190233244,-291.62202262,0.000199,3]
[379213375,1755190233254,-500.0,0.000199,2]
[379213376,1755190233263,-1092.0,0.000199,3]
[379213377,1755190233273,-500.0,0.000199,3]
[379213378,1755190233283,-1000.0,0.00019931,2]
[379213379,1755190233292,-500.0,0.00020048,2]
[379213380,1755190233301,-168.14,0.0002006,2]
[379213381,1755190233312,-428.0,0.00020174,3]
[379213382,1755190233322,-150.0,0.00020174,2]
[379213383,1755190233331,-561.27868094,0.00020174,3]
[379213384,1755190233341,-150.0,0.00020174,3]
[379213385,1755190233351,-500.0,0.00020174,3]
[379213386,1755190233360,-500.0,0.00020174,3]
[379213387,1755190233370,-500.0,0.00020174,3]
[379213388,1755190233379,-500.0,0.00020174,3]
[379213389,1755190233389,-500.0,0.00020174,3]
[379213390,1755190233399,-500.0,0.00020174,3]
[379213391,1755190233408,-500.0,0.00020174,3]
[379213392,1755190233417,-525.06141333,0.00020174,3]
[379213393,1755190233427,-150.0,0.00020174,3]
[379213394,1755190233436,-151.88359434,0.00020174,3]
[379213395,1755190233447,-500.0,0.00020174,3]
[379213396,1755190233456,-150.0,0.00020174,3]
[379213397,1755190233466,-500.0,0.00020174,3]
[379213398,1755190233475,-500.0,0.00020174,3]
[379213399,1755190233486,-500.0,0.00020174,3]
[379213400,1755190233496,-150.0,0.00020174,3]
[379213401,1755190233506,-500.0,0.00020174,3]
[379213402,1755190233524,-500.0,0.00020174,3]
[379213403,1755190233533,-500.0,0.00020174,3]
[379213404,1755190233546,-500.0,0.00020174,3]
[379213405,1755190233556,-1456.0,0.00020174,3]
[379213406,1755190233566,-854.0,0.00020174,3]
[379213407,1755190233575,-1030.0,0.00020174,3]
[379213408,1755190233585,-500.0,0.00020174,3]
[379213409,1755190233595,-500.0,0.00020174,2]
[379213410,1755190233604,-500.0,0.00020174,3]
[379213411,1755190233614,-500.0,0.00020174,2]
[379213412,1755190233623,-1092.0,0.00020174,3]
[379213413,1755190233633,-500.0,0.00020174,3]
[379213414,1755190233643,-283.2,0.00020187,2]
[379213415,1755190233652,-500.0,0.00020332,2]
[379213416,1755190233661,-344.10152012,0.00020332,2]
[379213417,1755190233671,-428.0,0.00020448,3]
[379213418,1755190233680,-150.0,0.00020448,2]
[379213419,1755190233690,-200.0,0.00020448,3]
[379213420,1755190233701,-500.0,0.00020448,3]
[379213421,1755190233711,-500.0,0.00020448,3]
[379213422,1755190233720,-500.0,0.00020448,3]
[379213423,1755190233730,-500.0,0.00020448,3]
[379213424,1755190233740,-500.0,0.00020448,3]
[379213425,1755190233749,-500.0,0.00020448,3]
[379213426,1755190233759,-498.50001998,0.00020448,3]
[379213427,1755190233771,-150.0,0.00020448,3]
[379213428,1755190233781,-500.0,0.00020448,3]
[379213429,1755190233791,-150.0,0.00020448,3]
[379213430,1755190233801,-500.0,0.00020448,3]
[379213431,1755190233814,-500.0,0.00020448,3]
[379213432,1755190233824,-500.0,0.00020448,3]
[379213433,1755190233834,-293.33491738,0.00020448,3]
[379213434,1755190233844,-500.0,0.00020448,3]
[379213435,1755190233854,-315.56906349,0.00020448,3]
[379213436,1755190233864,-434.54607827,0.00020448,3]
[379213437,1755190233875,-500.0,0.00020448,3]
[379213438,1755190233885,-1456.0,0.00020448,3]
[379213439,1755190233894,-854.0,0.00020448,3]
[379213440,1755190233903,-1030.0,0.00020448,3]
[379213441,1755190233913,-500.0,0.00020448,3]
[379213442,1755190233922,-500.0,0.00020448,2]
[379213443,1755190233932,-500.0,0.00020448,3]
[379213444,1755190233941,-500.0,0.00020448,2]
[379213445,1755190233952,-1092.0,0.00020448,3]
[379213446,1755190233963,-500.0,0.00020448,3]
[379213447,1755190233974,-285.0,0.00020491,2]
[379213448,1755190233983,-150.0,0.00020566,2]
[379213449,1755190233993,-1000.0,0.00020588,2]
[379213450,1755190234003,-500.0,0.00020588,2]
[379213451,1755190234016,-500.0,0.00020588,2]
[379213452,1755190234030,-250.0,0.00020588,2]
[379213453,1755190234039,-1000.0,0.00020588,2]
[379213454,1755190234048,-1619.88,0.00020593,2]
[379213455,1755190234057,-500.0,0.00020626,2]
[379213456,1755190234067,-1000.0,0.00020626,2]
[379213457,1755190234076,-182.01,0.00020676,2]
[379213458,1755190234085,-180.0,0.00020696,2]
[379213459,1755190234094,-428.0,0.00020722,3]
[379213460,1755190234104,-202.38307195,0.00020722,2]
[379213461,1755190234113,-500.0,0.00020722,3]
[379213462,1755190234122,-603.85405178,0.00020722,3]
[379213463,1755190234132,-500.0,0.00020722,3]
[379213464,1755190234141,-500.0,0.00020722,3]
[379213465,1755190234151,-490.85910066,0.00020722,3]
[379213466,1755190234162,-500.0,0.00020722,3]
[379213467,1755190234171,-458.13769775,0.00020722,3]
[379213468,1755190234181,-200.60775032,0.00020722,3]
[379213469,1755190234191,-224.97155541,0.00020722,3]
[379213470,1755190234202,-150.0,0.00020722,3]
[379213471,1755190234211,-500.0,0.00020722,3]
[379213472,1755190234220,-154.00744982,0.00020722,3]
[379213473,1755190234230,-600.0,0.00020722,3]
[379213474,1755190234239,-500.0,0.00020722,3]
[379213475,1755190234249,-500.0,0.00020722,3]
[379213476,1755190234259,-1456.0,0.00020722,3]
[379213477,1755190234269,-854.0,0.00020722,3]
[379213478,1755190234278,-1030.0,0.00020722,3]
[379213479,1755190234288,-500.0,0.00020722,3]
[379213480,1755190234298,-453.64681293,0.00020722,2]
[379213481,1755190234308,-500.0,0.00020722,3]
[379213482,1755190234318,-500.0,0.00020722,2]
[379213483,1755190234327,-1092.0,0.00020722,3]
[379213484,1755190234336,-500.0,0.00020722,3]
[379213485,1755190234346,-1680.0,0.00020797,2]
[379213486,1755190234356,-428.0,0.00020996,3]
[379213487,1755190234366,-500.0,0.00020996,3]
[379213488,1755190234376,-500.0,0.00020996,3]
[379213489,1755190234385,-500.0,0.00020996,3]
[379213490,1755190234395,-500.0,0.00020996,3]
[379213491,1755190234404,-295.68968755,0.00020996,3]
[379213492,1755190234414,-500.0,0.00020996,3]
[379213493,1755190234424,-500.0,0.00020996,3]
[379213494,1755190234435,-500.0,0.00020996,3]
[379213495,1755190234448,-1456.0,0.00020996,3]
[379213496,1755190234459,-854.0,0.00020996,3]
[379213497,1755190234471,-1030.0,0.00020996,3]
[379213498,1755190234481,-621.83131041,0.00020996,3]
[379213499,1755190234492,-500.0,0.00020996,3]
[379213500,1755190234504,-500.0,0.00020996,2]
[379213501,1755190234516,-1092.0,0.00020996,3]
[379213502,1755190234526,-500.0,0.00020996,3]
[379213503,1755190234536,-168.14,0.00021164,2]
[379213504,1755190234547,-173.61,0.00021221,2]
[379213505,1755190234557,-428.0,0.0002127,3]
[379213506,1755190234567,-500.0,0.0002127,3]
[379213507,1755190234578,-500.0,0.0002127,3]
[379213508,1755190234588,-289.06311576,0.0002127,3]
[379213509,1755190234597,-500.0,0.0002127,3]
[379213510,1755190234607,-500.0,0.0002127,3]
[379213511,1755190234616,-500.0,0.0002127,3]
[379213512,1755190234625,-500.0,0.0002127,2]
[379213513,1755190234635,-500.0,0.0002127,3]
[379213514,1755190234644,-1456.0,0.0002127,3]
[379213515,1755190234654,-854.0,0.0002127,3]
[379213516,1755190234663,-1030.0,0.0002127,3]
[379213517,1755190234672,-500.0,0.0002127,3]
[379213518,1755190234681,-500.0,0.0002127,2]
[379213519,1755190234691,-1092.0,0.0002127,3]
[379213520,1755190234702,-428.0,0.00021544,3]
[379213521,1755190234711,-500.0,0.00021544,3]
[379213522,1755190234722,-406.50725447,0.00021544,3]
[379213523,1755190234732,-500.0,0.00021544,3]
[379213524,1755190234742,-500.0,0.00021544,3]
[379213525,1755190234751,-312.75227529,0.00021544,3]
[379213526,1755190234761,-500.0,0.00021544,3]
[379213527,1755190234776,-1456.0,0.00021544,3]
[379213528,1755190234785,-854.0,0.00021544,3]
[379213529,1755190234795,-1030.0,0.00021544,3]
[379213530,1755190234804,-500.0,0.00021544,3]
[379213531,1755190234814,-500.0,0.00021544,2]
[379213532,1755190234823,-1092.0,0.00021544,3]
[379213533,1755190234832,-190.8,0.00021546,2]
[379213534,1755190234841,-589.30436866,0.00021718,2]
[379213535,1755190234852,-4529.74,0.00021757,2]
[379213536,1755190234863,-182.01,0.00021764,2]
[379213537,1755190234872,-428.0,0.00021818,3]
[379213538,1755190234881,-500.0,0.00021818,3]
[379213539,1755190234891,-500.0,0.00021818,3]
[379213540,1755190234900,-500.0,0.00021818,3]
[379213541,1755190234909,-1456.0,0.00021818,3]
[379213542,1755190234919,-854.0,0.00021818,3]
[379213543,1755190234928,-1030.0,0.00021818,3]
[379213544,1755190234938,-500.0,0.00021818,3]
[379213545,1755190234949,-500.0,0.00021818,2]
[379213546,1755190234959,-1092.0,0.00021818,3]
[379213547,1755190234970,-211.86673127,0.00021818,3]
[379213548,1755190234980,-666.0,0.00021918,3]
[379213549,1755190234989,-150.0,0.00021936,2]
[379213550,1755190234999,-428.0,0.00022092,3]
[379213551,1755190235009,-500.0,0.00022092,3]
[379213552,1755190235019,-500.0,0.00022092,3]
[379213553,1755190235028,-500.0,0.00022092,3]
[379213554,1755190235037,-1456.0,0.00022092,3]
[379213555,1755190235048,-854.0,0.00022092,3]
[379213556,1755190235057,-1030.0,0.00022092,3]
[379213557,1755190235066,-500.0,0.00022092,3]
[379213558,1755190235076,-500.0,0.00022092,2]
[379213559,1755190235086,-1092.0,0.00022092,3]
[379213560,1755190235095,-2636.18,0.00022188,2]
[379213561,1755190235104,-168.14,0.00022267,2]
[379213562,1755190235114,-428.0,0.00022366,3]
[379213563,1755190235123,-500.0,0.00022366,3]
[379213564,1755190235134,-500.0,0.00022366,3]
[379213565,1755190235144,-500.0,0.00022366,3]